bitfinex-derivatives/quotes_ETHF0:USTF0_20250106
["timestamp","ask_amount","ask_price","bid_price","bid_amount"]
[1736129211983,3.2078,3671.2,3669.2,7.488]
[1736129211984,3.2078,3671.2,3670.3,3.2078]
[1736129212291,1.958,3673.8,3671.1,3.2078]
[1736129212292,3.2078,3672.5,3671.1,3.2078]
[1736129212482,0.0078,3672.5,3671.1,3.2078]
[1736129212782,3.2078,3673.1,3671.7,3.2078]
[1736129212977,3.2078,3673.1,3670.5,0.4109]
[1736129212978,3.2078,3673.1,3672.1,3.2078]
[1736129213185,0.24514,3672.6,3672.1,3.2078]
[1736129213793,3.2078,3673.1,3672.1,3.2078]
[1736129214586,0.24517,3672.2,3672.1,3.2078]
[1736129215088,3.2078,3672.7,3672.1,3.2078]
[1736129215289,3.2078,3673.5,3672.1,3.2078]
[1736129215590,3.2078,3673.5,3672.6,3.2078]
[1736129215591,0.24513,3672.8,3672.6,3.2078]
[1736129215790,3.2078,3673.5,3672.6,3.2078]
[1736129215982,0.24511,3673.1,3672.6,3.2078]
[1736129216182,0.24512,3672.9,3672.6,3.2078]
[1736129216387,0.24513,3672.7,3672.6,3.2078]
[1736129218193,3.2078,3673.5,3672.6,3.2078]
[1736129218381,0.24513,3672.7,3672.6,3.2078]
[1736129218581,7.57800199,3673.1,3672.5,0.2612432]
[1736129218885,3.2078,3672.7,3671.1,0.2728]
[1736129219084,3.2078,3671.9,3671.2,40.8]
[1736129219582,3.2078,3672.3,3671.2,44.25303]
[1736129219886,3.2078,3672.3,3671.2,44.0078]
[1736129220089,0.24519,3671.9,3671.2,44.0078]
[1736129220389,0.24517,3672.2,3671.2,44.0078]
[1736129220581,3.2078,3672.3,3671.2,3.2078]
[1736129220981,3.2078,3671.8,3670.7,3.2078]
[1736129221389,3.2078,3671.0,3669.9,3.2078]
[1736129221586,0.24528,3670.5,3669.9,3.2078]
[1736129221786,3.2078,3670.6,3670.0,40.8]
[1736129222086,3.2078,3670.2,3669.4,3.2078]
[1736129222287,3.2078,3670.2,3669.3,3.6534]
[1736129222690,0.24534,3669.7,3669.3,0.4456]
[1736129222892,3.2078,3670.2,3669.3,0.4456]
[1736129223185,0.24534,3669.6,3668.9,3.2078]
[1736129223392,0.24535,3669.5,3669.0,40.8]
[1736129223587,0.24534,3669.6,3669.0,40.8]
[1736129223787,0.24536,3669.4,3669.0,40.8]
[1736129223993,3.2078,3669.7,3668.5,3.2078]
[1736129224195,3.2078,3669.3,3668.5,3.2078]
[1736129224498,3.2078,3668.9,3668.3,40.8]
[1736129225500,0.24539,3668.8,3668.3,40.8]
[1736129225697,3.2078,3668.9,3668.3,40.8]
[1736129225901,3.2078,3668.9,3668.4,0.24541]
[1736129226102,0.2454,3668.7,3668.3,40.8]
[1736129226302,3.2078,3669.3,3668.3,40.8]
[1736129226503,0.24537,3669.2,3668.3,40.8]
[1736129226696,0.24539,3668.8,3668.3,40.8]
[1736129226898,3.2078,3669.3,3668.3,40.8]
[1736129227098,0.24542,3668.5,3668.3,40.8]
[1736129227404,0.24544,3668.2,3667.6,3.2078]
[1736129227703,3.2078,3668.5,3667.6,3.2078]
[1736129227902,0.24545,3668.0,3667.6,3.2078]
[1736129228098,3.2078,3668.1,3667.6,3.2078]
[1736129228804,0.24545,3668.0,3667.6,3.2078]
[1736129229494,3.45321,3668.5,3667.6,3.2078]
[1736129229701,3.2078,3668.5,3667.6,3.2078]
[1736129230402,3.2078,3669.5,3668.4,3.2078]
[1736129230610,0.2453,3670.3,3669.2,3.2078]
[1736129230808,3.2078,3670.4,3669.2,3.2078]
[1736129231111,0.24533,3669.7,3669.6,40.8]
[1736129231510,3.2078,3670.0,3669.0,0.24538]
[1736129231709,3.2078,3670.0,3668.8,3.2078]
[1736129231911,0.24534,3669.7,3668.9,0.24538]
[1736129232111,0.24534,3669.7,3669.0,0.24538]
[1736129232307,0.24533,3669.8,3669.1,0.24537]
[1736129232511,0.24533,3669.7,3669.0,0.24538]
[1736129232708,3.45311,3670.0,3669.3,0.24536]
[1736129233113,0.24535,3669.5,3669.3,40.8]
[1736129233311,3.45314,3669.6,3668.8,3.45319]
[1736129233515,3.2078,3669.6,3668.8,3.45319]
[1736129233711,3.45315,3669.6,3668.9,41.04538]
[1736129233910,3.2078,3670.0,3668.9,40.8]
[1736129234110,0.24533,3669.9,3668.9,40.8]
[1736129234314,0.24533,3669.9,3669.3,0.24536]
[1736129234510,3.2078,3670.0,3669.3,0.24536]
[1736129234819,0.24532,3669.9,3669.3,0.24536]
[1736129235110,0.24532,3669.9,3669.2,3.2078]
[1736129235514,0.24533,3669.9,3669.3,0.24536]
[1736129235719,3.2078,3670.0,3669.4,0.24535]
[1736129235916,3.2078,3670.0,3669.2,3.2078]
[1736129236118,0.24533,3669.7,3669.2,3.2078]
[1736129236415,0.24535,3669.5,3668.9,40.8]
[1736129236719,0.24534,3669.7,3669.0,0.24538]
[1736129237415,0.24536,3669.3,3668.9,40.8]
[1736129237616,3.2078,3669.6,3668.4,3.2078]
[1736129237811,0.24535,3669.5,3668.9,0.24539]
[1736129238214,3.45314,3669.6,3668.9,41.04539]
[1736129239020,3.2078,3669.6,3669.2,0.24537]
[1736129239215,3.2078,3670.0,3669.2,3.2078]
[1736129239415,2.97799168,3671.2,3669.2,3.2078]
[1736129239416,0.24529,3670.4,3669.4,0.24535]
[1736129239713,1.96,3671.3,3668.9,40.8]
[1736129239714,0.24523,3671.3,3670.5,0.24527]
[1736129239913,3.2078,3671.4,3670.3,3.2078]
[1736129240116,2.09201353,3671.5,3671.3,0.24522]
[1736129240314,2.09201353,3671.5,3670.9,3.2078]
[1736129240715,2.09201353,3671.5,3671.4,3.45302]
[1736129240911,2.09201353,3671.5,3671.4,3.2078]
[1736129241114,3.2078,3672.0,3671.4,3.2078]
[1736129241319,3.2078,3672.0,3671.5,40.8]
[1736129241713,3.2078,3672.6,3671.5,40.8]
[1736129241920,0.24515,3672.5,3671.7,0.2452]
[1736129242114,3.2078,3672.6,3671.5,40.8]
[1736129242314,3.2078,3672.2,3671.0,3.2078]
[1736129242511,2.97799168,3672.8,3670.7,0.67417]
[1736129242512,0.24521,3671.6,3670.7,0.67417]
[1736129242726,3.2078,3671.8,3670.9,3.2078]
[1736129243021,3.2078,3672.2,3671.0,2.97799168]
[1736129243224,3.45297,3672.2,3671.3,3.45302]
[1736129243416,0.24518,3672.1,3671.3,3.2078]
[1736129243614,3.2078,3672.2,3671.3,3.2078]
[1736129243815,3.2078,3672.2,3671.5,2.97799168]
[1736129244017,3.2078,3672.6,3671.7,3.2078]
[1736129244411,3.2078,3672.1,3671.2,3.2078]
[1736129244615,3.2078,3672.1,3671.3,0.24523]
[1736129245223,3.2078,3672.1,3671.2,3.2078]
[1736129245425,3.2078,3672.1,3671.0,2.97799168]
[1736129245627,3.2078,3672.1,3671.2,3.2078]
[1736129245824,3.2078,3672.6,3671.6,3.2078]
[1736129246015,3.2078,3673.4,3672.6,0.24514]
[1736129246216,3.2078,3673.4,3672.5,6.18579168]
[1736129246416,3.2078,3673.4,3672.6,0.24514]
[1736129246617,3.2078,3673.4,3672.5,46.98579168]
[1736129246831,3.2078,3673.4,3672.6,0.24514]
[1736129247122,3.2078,3673.4,3672.5,46.98579168]
[1736129247516,3.2078,3673.4,3672.9,0.24512]
[1736129247713,3.2078,3673.4,3672.8,0.24512]
[1736129247925,3.2078,3673.4,3672.5,46.98579168]
[1736129248431,3.2078,3673.4,3672.5,3.2078]
[1736129248632,0.24509,3673.3,3672.5,3.45295]
[1736129248925,0.2451,3673.2,3672.5,3.2078]
[1736129249227,3.2078,3673.4,3672.8,0.24512]
[1736129249429,3.2078,3673.4,3672.5,6.18579168]
[1736129249727,2.70452353,3674.7,3671.7,0.8314]
[1736129249728,0.24503,3674.3,3673.4,0.24508]
[1736129249919,3.2078,3674.4,3673.0,2.97799168]
[1736129250129,0.24505,3673.9,3673.0,3.22310168]
[1736129250430,3.2078,3674.0,3672.9,3.2078]
[1736129250721,0.24508,3673.5,3672.9,3.2078]
[1736129250925,0.24508,3673.5,3672.1,0.2728]
[1736129250926,3.2078,3673.2,3672.2,3.2078]
[1736129251519,0.24515,3672.6,3672.2,3.2078]
[1736129251724,3.2078,3673.1,3672.2,3.2078]
[1736129252118,1.913,3673.6,3672.2,3.2078]
[1736129252119,3.2078,3673.5,3672.2,3.2078]
[1736129252323,3.2078,3673.5,3672.3,0.24516]
[1736129252533,3.2078,3673.5,3672.2,3.2078]
[1736129252722,0.24511,3673.1,3672.2,3.45296]
[1736129253029,0.24509,3673.4,3672.3,0.24516]
[1736129253325,5.29981353,3674.0,3673.0,3.2078]
[1736129253531,5.29981353,3674.0,3673.0,6.18579168]
[1736129253826,3.2078,3674.4,3673.0,6.18579168]
[1736129254023,3.2078,3674.4,3673.0,3.2078]
[1736129254024,0.24507,3673.8,3673.0,3.2078]
[1736129254330,3.2078,3674.4,3673.4,3.2078]
[1736129254331,0.24503,3674.2,3673.4,3.2078]
[1736129254624,3.2078,3674.4,3673.4,3.2078]
[1736129255030,0.24503,3674.2,3673.8,3.2078]
[1736129255222,0.24503,3674.4,3673.8,3.2078]
[1736129255421,3.2078,3674.8,3673.8,3.2078]
[1736129256020,0.24504,3674.1,3673.9,40.8]
[1736129256327,2.11462637,3675.3,3673.9,40.8]
[1736129256626,3.2078,3675.6,3673.9,40.8]
[1736129256821,0.24501,3674.5,3673.9,40.8]
[1736129257029,3.2078,3674.8,3673.9,40.8]
[1736129257224,0.24501,3674.5,3673.9,40.8]
[1736129257423,0.24501,3674.6,3673.9,41.04505]
[1736129257627,3.2078,3674.8,3673.9,40.8]
[1736129257928,3.2078,3674.8,3673.9,0.24505]
[1736129258327,3.2078,3674.8,3673.8,3.2078]
[1736129258624,0.24498,3675.0,3674.3,0.24503]
[1736129258825,0.24497,3675.1,3674.6,3.2078]
[1736129259221,3.2078,3675.2,3674.6,3.2078]
[1736129259420,3.2078,3675.2,3674.8,0.24499]
[1736129259621,3.2078,3676.0,3674.9,0.24498]
[1736129259920,0.24495,3675.5,3675.0,3.2078]
[1736129260118,3.2078,3675.4,3674.6,3.2078]
[1736129260322,0.24496,3675.3,3674.6,3.2078]
[1736129260518,0.24494,3675.6,3674.9,0.24498]
[1736129260731,3.2078,3676.0,3675.0,3.2078]
[1736129260931,0.24496,3675.3,3675.0,3.2078]
[1736129261232,0.24495,3675.5,3675.0,3.2078]
[1736129261428,3.2078,3675.6,3675.0,3.2078]
[1736129261626,3.2078,3675.2,3674.0,3.2078]
[1736129261923,3.82023,3675.2,3674.0,3.2078]
[1736129262120,3.2078,3675.2,3674.3,0.24502]
[1736129262325,0.4343,3675.8,3674.4,3.2078]
[1736129262529,3.2078,3675.9,3673.2,0.4057]
[1736129262530,3.2078,3675.9,3674.8,3.2078]
[1736129262828,0.24494,3675.6,3674.8,3.2078]
[1736129263029,3.2078,3675.9,3674.8,3.2078]
[1736129263225,3.2078,3675.9,3675.2,3.2078]
[1736129263625,3.2078,3675.9,3674.7,3.2078]
[1736129264027,0.24498,3675.1,3674.7,3.2078]
[1736129264230,3.2078,3675.9,3674.7,3.2078]
[1736129264526,0.24497,3675.2,3674.7,3.2078]
[1736129265031,3.2078,3675.9,3674.7,3.2078]
[1736129265225,0.24497,3675.2,3674.7,3.2078]
[1736129265726,3.2078,3675.9,3675.3,0.24496]
[1736129265925,3.45272,3675.9,3675.1,3.2078]
[1736129266128,3.45272,3675.9,3675.2,0.24496]
[1736129266129,0.24492,3675.9,3675.2,0.24496]
[1736129266331,0.24492,3675.9,3675.3,0.24495]
[1736129266527,0.2449,3676.2,3675.6,3.45274]
[1736129266724,0.24487,3676.6,3675.6,3.2078]
[1736129267427,0.24491,3676.1,3675.6,3.2078]
[1736129267631,0.24492,3675.9,3675.6,3.2078]
[1736129267830,3.2078,3676.7,3675.6,3.45274]
[1736129268035,3.2078,3676.3,3675.6,3.2078]
[1736129268232,0.24492,3675.9,3675.6,3.2078]
[1736129269433,3.2078,3677.2,3675.6,3.2078]
[1736129269630,0.24484,3677.1,3676.4,0.24488]
[1736129269833,0.24484,3677.1,3676.5,3.45267]
[1736129270027,3.2078,3677.6,3676.5,3.45267]
[1736129270028,3.2078,3677.6,3676.5,3.2078]
[1736129270234,0.4373,3678.5,3676.9,3.2078]
[1736129270433,3.2078,3678.3,3677.3,3.2078]
[1736129270628,5.32242637,3678.7,3677.3,3.2078]
[1736129270832,3.2078,3678.7,3677.3,3.2078]
[1736129271336,0.24479,3677.9,3677.3,3.2078]
[1736129271529,3.2078,3678.3,3677.3,3.2078]
[1736129271746,7.486,3678.9,3677.3,3.2078]
[1736129271747,0.24482,3677.4,3677.3,3.2078]
[1736129271936,3.2078,3677.5,3676.7,3.2078]
[1736129272136,0.24482,3677.4,3676.8,0.24485]
[1736129272331,0.24481,3677.5,3676.8,0.24486]
[1736129272527,3.2078,3677.6,3676.5,2.97799168]
[1736129272732,3.2078,3677.3,3676.2,4.0555]
[1736129273430,0.24487,3676.6,3676.2,4.0555]
[1736129273627,0.24487,3676.6,3676.2,3.2078]
[1736129273832,0.24488,3676.6,3676.2,3.2078]
[1736129274030,3.2078,3676.8,3676.2,3.2078]
[1736129274437,0.24491,3676.1,3675.6,3.2078]
[1736129274636,0.2449,3676.2,3675.6,3.2078]
[1736129275040,3.2078,3676.8,3675.6,3.2078]
[1736129275533,3.2078,3676.8,3675.5,3.22293168]
[1736129275534,0.24491,3676.1,3675.5,3.22293168]
[1736129275740,3.2078,3676.2,3675.5,2.97799168]
[1736129275942,0.24489,3676.4,3675.6,0.24494]
[1736129276238,0.24491,3676.0,3675.5,2.97799168]
[1736129276435,3.2078,3676.6,3675.5,2.97799168]
[1736129276635,3.2078,3676.6,3675.4,44.0078]
[1736129276838,3.2078,3676.2,3675.4,3.2078]
[1736129277030,0.24493,3675.7,3675.4,3.2078]
[1736129277232,0.24495,3675.5,3675.4,3.2078]
[1736129277440,0.24494,3675.6,3675.4,3.2078]
[1736129277638,0.24495,3675.5,3675.4,3.2078]
[1736129278239,3.2078,3676.2,3675.4,3.2078]
[1736129278739,3.2078,3676.2,3675.4,3.45275]
[1736129279137,3.2078,3676.2,3675.5,0.24494]
[1736129279138,0.24491,3676.1,3675.5,0.24494]
[1736129279338,3.2078,3676.6,3675.5,0.24494]
[1736129279644,3.2078,3676.6,3675.4,3.2078]
[1736129279847,0.2449,3676.2,3675.6,0.24494]
[1736129280038,0.24488,3676.5,3675.5,0.24494]
[1736129280347,3.2078,3676.6,3676.2,0.2449]
[1736129280540,3.2078,3676.6,3676.3,0.24489]
[1736129280842,3.2078,3677.0,3676.6,0.24487]
[1736129281035,3.2078,3677.9,3676.7,3.2078]
[1736129281342,3.2078,3678.4,3677.1,3.2078]
[1736129281538,3.2078,3678.4,3677.5,3.2078]
[1736129281738,0.24478,3678.0,3677.5,3.2078]
[1736129281939,3.2078,3678.4,3677.5,3.2078]
[1736129282140,0.24474,3678.7,3678.1,0.24477]
[1736129282341,3.2078,3678.9,3678.0,3.2078]
[1736129282537,0.24477,3678.1,3678.0,3.2078]
[1736129282742,0.2448,3677.8,3677.3,3.2078]
[1736129282941,3.2078,3678.5,3677.4,40.8]
[1736129282942,0.24479,3677.9,3677.4,40.8]
[1736129283243,0.2448,3677.7,3677.4,40.8]
[1736129283540,0.24481,3677.5,3677.3,3.2078]
[1736129283843,3.2078,3678.1,3677.3,3.2078]
[1736129284144,3.2078,3678.1,3677.7,0.24479]
[1736129284339,0.24476,3678.4,3677.8,0.24479]
[1736129284538,3.2078,3678.9,3678.1,3.2078]
[1736129284733,0.24476,3678.3,3678.1,3.2078]
[1736129284949,0.24474,3678.6,3678.1,3.2078]
[1736129285142,3.2078,3678.9,3678.1,3.2078]
[1736129285337,0.61182,3678.8,3677.5,3.2078]
[1736129285541,3.2078,3678.9,3677.5,3.2078]
[1736129285542,0.24478,3678.1,3677.5,3.2078]
[1736129285737,0.24478,3678.0,3677.5,3.2078]
[1736129286038,3.2078,3678.5,3677.5,3.2078]
[1736129286242,3.2078,3678.5,3676.8,0.6823]
[1736129286243,0.24485,3676.9,3676.8,0.4103]
[1736129286739,3.2078,3677.2,3676.7,3.2078]
[1736129286740,0.24486,3676.8,3676.7,3.2078]
[1736129286938,3.2078,3677.2,3676.7,3.2078]
[1736129287138,1.794,3677.9,3675.6,3.2078]
[1736129287139,0.24487,3676.7,3675.6,3.2078]
[1736129287337,3.2078,3676.8,3675.6,3.2078]
[1736129288343,0.24493,3675.8,3675.6,3.2078]
[1736129288545,0.24489,3676.3,3675.6,3.2078]
[1736129288741,3.2078,3676.4,3675.6,3.2078]
[1736129288742,0.24492,3675.9,3675.6,3.2078]
[1736129288942,3.2078,3676.4,3675.6,3.2078]
[1736129289137,0.24493,3675.7,3675.6,3.2078]
[1736129289439,0.24495,3675.4,3675.3,40.8]
[1736129289643,0.24497,3675.2,3675.0,3.2078]
[1736129289853,3.2078,3675.2,3674.4,3.2078]
[1736129290144,0.24501,3674.6,3674.5,40.8]
[1736129290447,3.2078,3674.8,3673.6,3.2078]
[1736129290639,3.2078,3674.8,3673.5,3.65969168]
[1736129290640,3.2078,3675.2,3674.5,0.24501]
[1736129290845,3.2078,3675.6,3674.8,3.2078]
[1736129291041,3.45269,3676.3,3675.5,0.24494]
[1736129291243,2.11462637,3676.2,3676.1,3.45271]
[1736129291443,0.01462637,3676.2,3676.1,3.45271]
[1736129291645,3.17193956,3676.4,3676.1,3.45271]
[1736129291646,3.17193956,3676.4,3676.3,0.24489]
[1736129291843,1.82333956,3676.4,3676.3,0.24489]
[1736129292044,4.22925275,3676.7,3676.3,5.0]
[1736129292247,4.22925275,3676.7,3676.6,6.43066168]
[1736129292248,2.88065275,3676.7,3676.6,6.43066168]
[1736129292447,5.28656594,3677.0,3676.9,0.24485]
[1736129292648,0.24478,3678.0,3676.7,1.794]
[1736129292845,3.2078,3678.6,3677.5,3.2078]
[1736129293350,3.2078,3678.6,3678.1,0.24477]
[1736129293554,3.2078,3678.6,3678.3,0.24476]
[1736129293750,3.2078,3678.6,3678.0,3.2078]
[1736129294142,0.24471,3679.1,3678.5,0.24474]
[1736129294347,0.24471,3679.1,3678.4,3.45255]
[1736129294655,0.24471,3679.0,3678.4,3.45255]
[1736129295153,0.24471,3679.0,3677.8,5.04399168]
[1736129295154,0.24468,3679.5,3678.8,3.2078]
[1736129295452,3.2078,3680.0,3678.8,3.2078]
[1736129295658,0.2447,3679.3,3678.8,3.2078]
[1736129295955,0.4244,3680.3,3678.8,3.2078]
[1736129295956,3.2078,3679.6,3678.8,3.2078]
[1736129296154,3.2078,3679.6,3678.2,3.2078]
[1736129296454,3.2078,3679.5,3678.2,3.2078]
[1736129296653,0.24473,3678.8,3678.2,3.2078]
[1736129296849,3.2078,3679.5,3678.2,3.2078]
[1736129297055,3.2078,3679.1,3678.2,3.2078]
[1736129297353,3.2078,3678.7,3677.8,3.2078]
[1736129297954,0.24476,3678.3,3677.8,3.2078]
[1736129298456,3.2078,3678.7,3677.8,6.18579168]
[1736129298956,0.24465,3680.0,3679.0,0.24471]
[1736129299253,3.2078,3680.9,3679.2,3.2078]
[1736129299454,0.24464,3680.2,3679.2,3.45249]
[1736129299654,0.24463,3680.3,3679.4,0.24468]
[1736129299854,5.53117594,3680.5,3679.6,3.45247]
[1736129300053,5.53117594,3680.5,3679.6,3.2078]
[1736129300054,5.28656594,3680.5,3679.6,3.2078]
[1736129300362,3.2078,3680.9,3680.0,3.2078]
[1736129300560,0.24459,3680.9,3680.0,3.2078]
[1736129300857,0.2446,3680.8,3680.0,3.2078]
[1736129301060,3.2078,3680.9,3680.0,3.2078]
[1736129301254,3.2078,3680.5,3679.5,3.2078]
[1736129301450,0.24463,3680.2,3679.1,6.43049168]
[1736129301662,3.2078,3679.9,3679.1,6.43049168]
[1736129301954,0.24464,3680.1,3679.2,41.0447]
[1736129302159,0.24464,3680.1,3679.2,40.8]
[1736129302360,3.2078,3680.3,3679.2,40.8]
[1736129302659,0.24464,3680.1,3679.2,40.8]
[1736129302859,3.2078,3680.3,3679.1,3.2078]
[1736129303159,3.2078,3680.3,3678.6,0.272]
[1736129303160,3.2078,3679.8,3678.6,3.2078]
[1736129303456,3.2078,3680.2,3679.0,3.2078]
[1736129303663,0.24465,3680.0,3679.1,0.2447]
[1736129303959,3.2078,3679.8,3679.0,3.2078]
[1736129304459,3.45246,3679.8,3679.0,3.2078]
[1736129304657,0.24466,3679.8,3679.0,3.2078]
[1736129304859,0.24468,3679.5,3678.6,6.18579168]
[1736129305154,0.24473,3678.9,3678.1,7.68659168]
[1736129305359,3.2078,3679.2,3678.2,40.8]
[1736129305854,3.2078,3679.2,3678.5,3.2078]
[1736129306060,2.97799168,3680.7,3678.9,3.2078]
[1736129306061,0.24465,3680.0,3678.9,3.2078]
[1736129306256,0.24472,3678.9,3678.5,3.2078]
[1736129306452,3.2078,3679.3,3678.2,40.8]
[1736129306755,3.2078,3679.7,3678.4,3.2078]
[1736129306950,0.24469,3679.5,3678.4,3.2078]
[1736129307150,3.2078,3679.7,3678.4,3.45255]
[1736129307350,0.2447,3679.3,3678.5,0.24475]
[1736129307655,3.2078,3679.7,3678.4,3.2078]
[1736129307851,0.24471,3679.0,3678.4,3.2078]
[1736129308056,0.61162,3680.1,3678.2,40.8]
[1736129308057,3.2078,3679.5,3678.2,40.8]
[1736129308260,3.2078,3679.1,3678.2,40.8]
[1736129308451,3.2078,3679.4,3678.6,2.97799168]
[1736129308657,0.2447,3679.2,3678.6,2.97799168]
[1736129308858,3.2078,3679.4,3678.6,2.97799168]
[1736129309054,3.2078,3679.4,3678.6,3.22272168]
[1736129309055,3.45249,3679.4,3678.6,3.22272168]
[1736129309250,3.2078,3679.4,3678.6,2.97799168]
[1736129309454,0.24469,3679.3,3678.5,3.2078]
[1736129309655,0.24471,3679.1,3678.5,3.2078]
[1736129309853,3.2078,3679.4,3678.2,40.8]
[1736129310060,0.24472,3679.0,3678.2,41.04477]
[1736129310254,0.24472,3679.0,3678.2,40.8]
[1736129310255,3.2078,3679.0,3678.2,40.8]
[1736129310663,3.2078,3678.6,3678.2,40.8]
[1736129310959,0.24473,3678.8,3678.2,40.8]
[1736129311263,3.45254,3678.7,3678.2,40.8]
[1736129311565,3.2078,3678.7,3678.2,40.8]
[1736129311767,3.2078,3678.7,3678.3,0.24476]
[1736129312062,0.24472,3679.1,3678.4,0.24476]
[1736129312265,0.24472,3679.0,3678.3,0.24476]
[1736129312457,3.2078,3679.4,3678.2,44.25257]
[1736129312659,3.2078,3679.4,3678.6,3.2078]
[1736129312863,4.7914,3679.5,3678.3,0.24476]
[1736129313059,4.7914,3679.5,3678.4,0.24476]
[1736129313060,0.24471,3679.1,3678.4,0.24476]
[1736129313665,0.24469,3679.4,3678.3,0.24476]
[1736129313865,4.7914,3679.5,3678.2,44.0078]
[1736129314067,0.24471,3679.1,3678.2,44.0078]
[1736129314265,0.24471,3679.1,3678.3,0.24476]
[1736129314669,4.7914,3679.5,3678.2,44.0078]
[1736129314858,0.24477,3678.3,3678.2,44.0078]
[1736129315062,3.2078,3678.7,3678.2,40.8]
[1736129315261,3.2078,3678.7,3678.4,0.24476]
[1736129315459,3.2078,3678.7,3678.2,44.0078]
[1736129315664,0.24472,3679.1,3678.4,0.24476]
[1736129315861,3.2078,3679.3,3678.2,44.0078]
[1736129316065,0.24471,3679.2,3678.5,0.24475]
[1736129316261,3.2078,3679.3,3678.6,3.2078]
[1736129316463,3.2078,3679.3,3678.6,6.18579168]
[1736129316858,3.2078,3679.3,3678.7,40.8]
[1736129317057,3.2078,3679.3,3678.6,3.2078]
[1736129317267,0.24474,3678.8,3677.8,3.2078]
[1736129317468,3.2078,3678.5,3677.9,40.8]
[1736129317765,3.2078,3679.0,3677.9,40.8]
[1736129318270,3.2078,3679.0,3678.2,3.2078]
[1736129318465,3.2078,3679.0,3678.4,0.24477]
[1736129318663,3.2078,3679.0,3678.5,0.24476]
[1736129318966,3.2078,3679.0,3678.2,3.2078]
[1736129319267,3.45254,3679.0,3678.5,0.24477]
[1736129319475,3.2078,3679.0,3678.2,3.2078]
[1736129319672,3.2078,3679.5,3678.8,3.2078]
[1736129320166,0.24471,3679.4,3678.9,0.24474]
[1736129320365,1.736,3680.3,3678.8,3.2078]
[1736129320366,3.2078,3680.0,3678.8,3.2078]
[1736129321075,0.24471,3679.4,3678.8,3.2078]
[1736129321267,3.2078,3680.0,3679.2,3.2078]
[1736129321464,3.2078,3680.0,3678.8,3.2078]
[1736129321673,0.24473,3679.2,3678.9,0.11843974]
[1736129321971,0.61165,3680.2,3678.8,3.2078]
[1736129321972,3.2078,3679.5,3678.8,3.2078]
[1736129322172,3.2078,3680.8,3680.6,0.24462]
[1736129322364,3.2078,3680.8,3680.3,3.2078]
[1736129322671,3.2078,3680.8,3680.7,0.24462]
[1736129322866,3.2078,3680.8,3680.6,0.24462]
[1736129323072,3.2078,3680.8,3680.4,0.24464]
[1736129323273,3.2078,3680.8,3680.5,0.32171854]
[1736129323466,3.2078,3680.8,3680.6,41.16835525]
[1736129323670,3.2078,3680.8,3680.7,0.12372525]
[1736129323874,3.2078,3681.4,3680.7,0.12372525]
[1736129324077,3.2078,3681.4,3680.8,0.12374631]
[1736129324285,7.44403589,3681.8,3680.7,3.2078]
[1736129324484,0.24455,3681.7,3681.0,0.2446]
[1736129324679,3.2078,3681.8,3681.1,0.12362088]
[1736129324980,3.2078,3681.8,3680.7,3.2078]
[1736129325280,0.2446,3681.1,3680.8,0.12364386]
[1736129325476,3.2078,3681.4,3680.9,0.12356234]
[1736129325778,0.24458,3681.3,3680.9,40.8]
[1736129325979,3.2078,3681.4,3680.3,3.2078]
[1736129326182,0.24463,3680.5,3680.4,0.12356634]
[1736129326376,3.2078,3680.5,3679.7,3.2078]
[1736129326681,3.45244,3680.5,3679.8,0.56606377]
[1736129326881,3.2078,3680.5,3679.9,0.12360035]
[1736129327082,3.2078,3680.9,3680.0,0.12363824]
[1736129327275,3.2078,3680.9,3680.1,0.12363824]
[1736129327573,3.2078,3680.9,3679.7,3.2078]
[1736129327780,3.2078,3680.9,3679.8,0.56614187]
[1736129327977,3.2078,3680.9,3679.9,0.32146187]
[1736129328177,3.2078,3680.9,3680.0,0.12362654]
[1736129328377,3.2078,3680.9,3680.1,0.12362654]
[1736129328575,0.24463,3680.6,3680.2,0.12362654]
[1736129328771,3.2078,3680.9,3680.3,0.12362654]
[1736129329076,3.2078,3680.9,3680.4,0.12365154]
[1736129329077,0.24462,3680.7,3680.4,0.12365154]
[1736129329286,3.2078,3680.9,3680.1,2.97799168]
[1736129329576,3.45241,3680.9,3680.2,0.32138153]
[1736129329783,0.24461,3680.8,3680.3,0.12359151]
[1736129329975,3.45241,3680.9,3680.4,0.12359151]
[1736129330176,3.2078,3680.9,3680.4,0.12359151]
[1736129330876,3.2078,3681.6,3680.6,2.97799168]
[1736129331070,3.2078,3681.6,3680.7,0.24462]
[1736129331380,3.2078,3681.6,3680.6,2.97799168]
[1736129331578,0.24459,3681.3,3680.7,0.24462]
[1736129331880,3.2078,3681.6,3680.8,40.8]
[1736129332280,3.45236,3681.6,3681.0,0.2446]
[1736129332477,3.2078,3681.6,3680.8,40.92358728]
[1736129332681,3.2078,3681.6,3680.8,40.8]
[1736129332876,0.24459,3681.2,3680.8,40.8]
[1736129333077,3.2078,3681.6,3680.6,2.97799168]
[1736129333378,0.24461,3680.9,3680.7,0.12366587]
[1736129333571,3.2078,3681.1,3680.1,47.23044168]
[1736129333572,0.24462,3680.8,3680.1,47.23044168]
[1736129333774,3.2078,3681.1,3680.2,0.32144911]
[1736129333978,3.2078,3681.1,3680.3,0.32144911]
[1736129334181,3.2078,3681.1,3680.4,0.32144911]
[1736129334376,3.2078,3681.1,3680.1,46.98579168]
[1736129334377,3.4524,3681.1,3680.5,0.36825163]
[1736129334578,0.24459,3681.2,3680.6,0.36817083]